{"text_format":"1","workbook":"xlsx","n_sheets":5,"sheets":["入力シート","使い方","エラーメッセージ一覧","Add_Plan_Style","OCTO-W9-0431-001.xsd"],"not_rendered":{"charts":0,"images":2,"macros":1,"external_links":1,"defined_names":2,"comments":2,"pivot_tables":0},"unopened":[],"bounds":{"document_bytes":16777216,"sheet_cells":100000,"rows_first":2000,"rows_last":500,"rows_between":2000,"halvings":0,"cell_chars":16384,"cell_head_chars":4096},"cells_cut":0,"cells_raw":0,"read":"whole","date_system":"1900"}

{"sheet":"入力シート","index":0,"n_rows":71,"n_cols":45,"rows_kept":71,"cut":false,"hidden":false,"merged":[[20,0,25,0],[62,0,67,0],[15,13,16,13],[17,13,18,13],[68,1,68,2],[26,0,31,0],[32,0,37,0],[38,0,43,0],[44,0,49,0],[50,0,55,0],[56,0,61,0],[10,10,10,12],[10,5,10,8],[9,5,9,8],[2,6,2,12],[3,6,3,12],[5,3,5,8],[5,9,5,12],[9,10,9,12],[8,5,8,8],[8,10,8,12],[6,5,6,8],[6,10,6,12],[7,5,7,8],[7,10,7,12],[13,3,14,3],[15,3,18,3],[15,15,16,44],[17,15,17,44],[18,15,18,44]]}
[null,null,null,"三次調整力①1分発電計画電力計画入力支援ツール"]
[]
[null,null,null,"対象年月日",null,"読込ファイル名",""]
[null,null,null,"対象商品ブロック","ブロック①","出力先",""]
[]
[null,null,null,"基本情報",null,null,null,null,null,"出力ファイル名情報"]
[null,null,null,null,"コード","名称▲",null,null,null,"XMLファイル名",{"$f":"\"W9_\"&E8&\"_\"&K8&\"_\"&K9&\"_\"&K10&\"_\"&K11&\".xml\"","v":"W9_0431__01__.xml"}]
[null,null,null,"情報区分","0431","三次調整力①1分発電計画電力計画",null,null,null,"対象時期の開始日",{"$f":"IF(E3=\"\",\"\",E3)","v":""}]
[null,null,null,"提出先事業者","","",null,null,null,"約定対象開始コマ番号","01"]
[null,null,null,"送信事業者","","",null,null,null,"系統コード",{"$f":"IF(E11=\"\",\"\",E11)","v":""}]
[null,null,null,"提出者（系統コード）","","",null,null,null,"電源等コード",""]
[null,null,null,"運用モード","通常"]
[]
[null,null,null,"合計発電計画","発電計画内訳"]
[null,null,null,null,"発電事業者1",null,null,null,null,null,null,null,null,"(※)不整合電力量が±１の範囲内であれば、丸め誤差として許容します。"]
[null,null,null,"合計発電計画＝\nΣ発電計画内訳","所属発電BGコード",null,null,null,null,null,null,null,null,"合計発電計画と\n発電計画電力の整合性",null,"発電計画電力"]
[]
[null,null,null,null,"所属発電BG名称▲",null,null,null,null,null,null,null,null,"30分平均発電計画\n－合計発電計画",null,"1分発電計画電力(kW)"]
[null,null,null,null,null,null,null,null,null,null,null,null,null,null,"30分平均発電計画(kWh)","タイムスロット"]
["対象ブロック","#","時間帯","合計発電計画(kWh)","発電計画(kWh)",null,null,null,null,null,null,null,null,"不整合電力量(kWh)",null,"01","02","03","04","05","06","07","08","09","10","11","12","13","14","15","16","17","18","19","20","21","22","23","24","25","26","27","28","29","30"]
["ブロック①","01","0:00～0:30",{"$f":"SUM(E21:E21)","v":0},null,null,null,null,null,null,null,null,null,{"$f":"O21-D21","v":0},{"$f":"IFERROR(ROUND(AVERAGE(P21:AS21)*0.5,0),0)","v":0}]
[null,"02","0:30～1:00",{"$f":"SUM(E22:E22)","v":0},null,null,null,null,null,null,null,null,null,{"$f":"O22-D22","v":0},{"$f":"IFERROR(ROUND(AVERAGE(P22:AS22)*0.5,0),0)","v":0}]
[null,"03","1:00～1:30",{"$f":"SUM(E23:E23)","v":0},null,null,null,null,null,null,null,null,null,{"$f":"O23-D23","v":0},{"$f":"IFERROR(ROUND(AVERAGE(P23:AS23)*0.5,0),0)","v":0}]
[null,"04","1:30～2:00",{"$f":"SUM(E24:E24)","v":0},null,null,null,null,null,null,null,null,null,{"$f":"O24-D24","v":0},{"$f":"IFERROR(ROUND(AVERAGE(P24:AS24)*0.5,0),0)","v":0}]
[null,"05","2:00～2:30",{"$f":"SUM(E25:E25)","v":0},null,null,null,null,null,null,null,null,null,{"$f":"O25-D25","v":0},{"$f":"IFERROR(ROUND(AVERAGE(P25:AS25)*0.5,0),0)","v":0}]
[null,"06","2:30～3:00",{"$f":"SUM(E26:E26)","v":0},null,null,null,null,null,null,null,null,null,{"$f":"O26-D26","v":0},{"$f":"IFERROR(ROUND(AVERAGE(P26:AS26)*0.5,0),0)","v":0}]
["ブロック②","07","3:00～3:30"]
[null,"08","3:30～4:00"]
[null,"09","4:00～4:30"]
[null,10,"4:30～5:00"]
[null,11,"5:00～5:30"]
[null,12,"5:30～6:00"]
["ブロック③",13,"6:00～6:30"]
[null,14,"6:30～7:00"]
[null,15,"7:00～7:30"]
[null,16,"7:30～8:00"]
[null,17,"8:00～8:30"]
[null,18,"8:30～9:00"]
["ブロック④",19,"9:00～9:30"]
[null,20,"9:30～10:00"]
[null,21,"10:00～10:30"]
[null,22,"10:30～11:00"]
[null,23,"11:00～11:30"]
[null,24,"11:30～12:00"]
["ブロック⑤",25,"12:00～12:30"]
[null,26,"12:30～13:00"]
[null,27,"13:00～13:30"]
[null,28,"13:30～14:00"]
[null,29,"14:00～14:30"]
[null,30,"14:30～15:00"]
["ブロック⑥",31,"15:00～15:30"]
[null,32,"15:30～16:00"]
[null,33,"16:00～16:30"]
[null,34,"16:30～17:00"]
[null,35,"17:00～17:30"]
[null,36,"17:30～18:00"]
["ブロック⑦",37,"18:00～18:30"]
[null,38,"18:30～19:00"]
[null,39,"19:00～19:30"]
[null,40,"19:30～20:00"]
[null,41,"20:00～20:30"]
[null,42,"20:30～21:00"]
["ブロック⑧",43,"21:00～21:30"]
[null,44,"21:30～22:00"]
[null,45,"22:00～22:30"]
[null,46,"22:30～23:00"]
[null,47,"23:00～23:30"]
[null,48,"23:30～24:00"]
[null,"対象約定ブロック合計",null,{"$f":"SUM(D21:D26)","v":0},{"$f":"SUM(E21:E26)","v":0}]
[]
[null,null,null,{"$f":"SUM(D29:D34)","v":0},{"$f":"SUM(#REF!)","v":{"$error":"#REF!"}},{"$f":"SUM(#REF!)","v":{"$error":"#REF!"}},{"$f":"SUM(#REF!)","v":{"$error":"#REF!"}},{"$f":"SUM(#REF!)","v":{"$error":"#REF!"}},{"$f":"SUM(#REF!)","v":{"$error":"#REF!"}}]

{"sheet":"使い方","index":1,"n_rows":102,"n_cols":11,"rows_kept":102,"cut":false,"hidden":false,"merged":[[80,3,80,4],[80,5,80,7],[80,8,80,9],[81,3,81,4],[81,5,81,7],[81,8,81,9],[78,3,78,4],[78,5,78,7],[78,8,78,9],[79,3,79,4],[79,5,79,7],[79,8,79,9],[75,3,75,4],[75,5,75,7],[75,8,75,9],[76,0,81,1],[76,3,76,4],[76,5,76,7],[76,8,76,9],[77,3,77,4],[77,5,77,7],[70,0,75,1],[70,3,70,4],[70,5,70,7],[70,8,70,9],[71,3,71,4],[71,5,71,7],[77,8,77,9],[73,3,73,4],[73,5,73,7],[73,8,73,9],[74,3,74,4],[74,5,74,7],[74,8,74,9],[72,3,72,4],[72,5,72,7],[72,8,72,9],[65,8,65,9],[66,8,66,9],[67,8,67,9],[69,0,69,1],[69,3,69,4],[69,5,69,7],[69,8,69,9],[71,8,71,9],[52,0,52,5],[52,6,52,14],[53,0,53,5],[53,6,53,14],[63,0,68,4],[63,5,64,7],[63,8,63,9],[64,8,64,9],[65,5,68,7],[68,8,68,9],[64,10,66,14],[67,10,68,14],[49,0,49,5],[49,6,49,14],[50,0,50,5],[50,6,50,14],[51,0,51,5],[51,6,51,14],[48,0,48,14],[37,0,37,5],[37,6,37,7],[37,8,37,12],[38,0,38,5],[38,6,38,7],[38,8,38,12],[39,0,39,5],[39,6,39,7],[39,8,39,12],[42,0,42,13],[47,0,47,7],[35,0,35,5],[35,6,35,7],[35,8,35,12],[36,0,36,5],[36,6,36,7],[36,8,36,12],[74,10,81,14],[34,0,34,5],[34,6,34,7],[34,8,34,12],[0,0,1,10],[4,5,19,13],[22,0,24,13],[27,0,27,7],[28,0,28,3],[28,4,28,5],[28,6,28,13],[29,0,29,3],[29,4,29,5],[29,6,29,13],[32,0,32,7],[33,0,33,12]]}
["三次調整力①１分発電計画電力計画入力支援ツールの使用方法"]
[]
[]
["①起動ボタンの説明"]
[null,null,null,null,null,"本ツールは用途に合わせ，左図のボタンを押下して使用します。\n各ボタンの機能は，下記の通りです。\n・『対象商品ブロック変更』ボタン\n　作成する発電計画の対象となる商品ブロックを選択します。\n・『発電事業者数変更』ボタン\n　作成する発電計画の内訳となる発電事業者数を変更します。\n・『発電計画XML読込』ボタン\n　過去に作成した発電計画のXMLファイルを読み込みます。\n・『発電計画XML出力』ボタン\n　入力シートで作成した発電計画をXMLファイル形式で出力します。\n・『XMLファイル妥当性検証』ボタン\n　本ツール以外で作成した発電計画のXMLをスキーマと照合してビジネスプロトコル標準規格に準拠しているか妥当性を検証します。なお，本ツールでXMLファイルの読み込みおよび出力を行った場合，スキーマによる妥当性を検証しているため，この操作は不要です。\n・『終了（上書保存）』ボタン\n　入力シートを上書き保存した後，本エクセルブックを閉じます。\n"]
[]
[]
[]
[]
[]
[]
[]
[]
[]
[]
[]
[]
[]
[]
[]
[]
["②入力項目の説明"]
["本ツールは，『入力シート』の白色セルの所定の項目を入力した上で，XMLファイルに変換します。白色セルで『▲』マークが記されていない箇所は，必須入力項目です。具体的な入力方法は次項以降で説明します。"]
[]
[]
[]
["②－１　ファイル情報の入力"]
["ファイル情報の具体的な入力規則は下記の通りです。"]
["対象年月日",null,null,null,"20210405",null,"対象年月日は『YYYYMMDD』形式で半角数字8桁で入力。"]
["対象商品ブロック",null,null,null,"ブロック②",null,"対象商品ブロックは，『対象商品ブロック変更』ボタンを押下して選択。"]
[]
["②－２　基本情報の入力"]
["基本情報の具体的な入力規則は下記の通りです。"]
["基本情報"]
[null,null,null,null,null,null,"コード",null,"名称▲"]
["情報区分",null,null,null,null,null,"0431",null,"三次調整力①1分発電計画電力計画"]
["提出先事業者",null,null,null,null,null,"10033",null,"東京電力パワーグリッド株式会社"]
["送信事業者",null,null,null,null,null,"80363",null,"グローバルエナジーアグリゲーター"]
["提出者（系統コード）",null,null,null,null,null,"30543",null,"グローバルエナジーアグリゲーター"]
["運用モード",null,null,null,null,null,"通常"]
[]
["情報区分は，自動入力（W9_0431で三次調整力①1分発電計画電力計画を意味します）。"]
["提出先事業者は，作成する発電計画が対象するリソースにおける属地エリアの一般送配電事業者を入力。"]
["送信事業者は，送信事業者コードと事業者名称を入力。"]
["運用モードは，約定したリソースの発電計画として需給調整市場システムに提出する場合，『通常』を選択。"]
[]
["②－３　出力ファイル情報の入力"]
["出力ファイル情報の具体的な入力は下記の通りです。"]
["出力ファイル名情報"]
["XMLファイル名",null,null,null,null,null,"W9_0431_20210405_07_305ZZ_KSS2019.xml"]
["対象時期の開始日",null,null,null,null,null,20210405]
["約定対象開始コマ番号",null,null,null,null,null,"07"]
["系統コード",null,null,null,null,null,"305ZZ"]
["電源等コード",null,null,null,null,null,"KSS2019"]
[]
["XMLファイル名は，自動入力（W9_”＋情報区分＋対象年月日＋約定対象開始コマ番号＋提出者（系統コード）＋電源等コード＋”.xml”を表示）"]
["対象時期の開始日は，自動入力（適用開始希望年月日を表示）"]
["約定対象開始コマ番号は，自動入力（提出者（約定対象時間の開始時刻よりコマ番号を数値2桁で表示）"]
["系統コードは，自動入力（提出者（用系統コード）を表示）"]
["電源等コードは，半角英数字（\"-\",\"_\"も使用可）で10桁以内で入力"]
[]
["②－４　発電計画の入力"]
["発電計画の具体的な入力規則は下記の通りです。"]
[null,null,null,null,null,"合計発電計画",null,null,"発電計画内訳"]
[null,null,null,null,null,null,null,null,"発電事業者1",null,"所属発電BGコードは、発電リソースが所属する発電BGコードを半角英数字5桁で入力。"]
[null,null,null,null,null,"合計発電計画＝\nΣ発電計画内訳",null,null,"所属発電BGコード"]
[]
[null,null,null,null,null,null,null,null,"所属発電BG名称▲",null,"所属発電BG名称は、発電リソースが所属する発電BGの名称を50文字以内で任意入力。"]
[]
["対象ブロック",null,"#","時間帯",null,"合計発電計画(kWh)",null,null,"発電計画(kWh)"]
[null,null,"01","0:00～0:30"]
[null,null,"02","0:30～1:00"]
[null,null,"03","1:00～1:30"]
[null,null,"04","1:30～2:00"]
[null,null,"05","2:00～2:30",null,null,null,null,null,null,"発電計画(kWh）は，発電リソースが出力調整を実施しなかった場合の接続対象電力量(kWh)を発電事業者かつ30分コマ単位に半角整数で入力。"]
[null,null,"06","2:30～3:00"]
["ブロック②",null,"07","3:00～3:30",null,3250,null,null,3250]
[null,null,"08","3:30～4:00",null,3250,null,null,3250]
[null,null,"09","4:00～4:30",null,3250,null,null,3250]
[null,null,10,"4:30～5:00",null,3550,null,null,3550]
[null,null,11,"5:00～5:30",null,3560,null,null,3560]
[null,null,12,"5:30～6:00",null,3650,null,null,3650]
[]
[]
["②－５　1分発電計画電力の入力"]
["1分発電計画電力の具体的な入力規則は下記の通りです。"]
[]
[]
[]
[]
[]
[]
[]
[]
[]
[]
[]
[]
[]
[]
[]
["1分発電計画電力(kW）は発電リソースが出力調整を実施しなかった場合の接続対象電力量(kWh)をタイムスロット単位に半角整数で入力。"]

{"sheet":"エラーメッセージ一覧","index":2,"n_rows":37,"n_cols":6,"rows_kept":37,"cut":false,"hidden":false,"merged":[]}
["■三次調整力①1分発電計画電力計画入力支援ツール　エラーメッセージ一覧"]
[]
[null,"No.","操作","エラー種別","エラーメッセージ","対処方法"]
[null,{"$f":"ROW()-3","v":1},"「対象商品ブロック変更」ボタン押下","選択エラー","変更前後で同一の商品ブロックが選択されました。","【ブロック変更】\n・変更前後で異なる商品ブロックを選択してください。"]
[null,2,"「発電事業者数変更」ボタン押下","入力エラー","増加させる発電事業者数を1以上かつxxx以下の整数で入力して下さい。","【発電事業者数の増加】\n・増加する発電事業者数を見直してください。（max999）"]
[null,3,null,"入力エラー","現在，発電事業者は999個存在するため，これ以上増加できません。","【発電事業者数の増加】\n・発電事業者数の最大は999です。"]
[null,4,null,"入力エラー","削除する発電事業者番号を入力して下さい。","【発電事業者数減少】発電事業者を1個選択して削除\n・削除する発電事業者番号を入力してください。"]
[null,5,null,"入力エラー","削除する発電事業者番号を1～xxxの整数で入力して下さい。","【発電事業者数減少】発電事業者を1個選択して削除／連続した複数の発電事業者を削除\n・削除する発電事業者番号を見直してください。"]
[null,6,null,"入力エラー","現在，発電事業者は1個しか存在しないため，これ以上削除できません。","【発電事業者数減少】発電事業者を1個選択して削除／連続した複数の発電事業者を削除\n・発電事業者数は1個は残す必要があります。発電事業者数情報を確認してください。"]
[null,7,null,"入力エラー","削除する発電事業者番号の開始と終了番号を入力して下さい。","【発電事業者数減少】連続した複数の発電事業者を削除\n・削除する事業者番号を入力してください。"]
[null,8,null,"入力エラー","削除終了の発電事業者番号は，削除開始の発電事業者番号より同じか後にして下さい。","【発電事業者数減少】連続した複数の発電事業者を削除\n・削除する発電事業者番号の開始番号と終了番号を見直してください。"]
[null,9,"「発電計画XML読込」ボタン押下\n「XMLファイル妥当性検証」ボタン押下","XMLエラー","読み込んだXMLファイルは下記の理由で規格に違反しているため、読込を中止します。\nエラー理由：　\n　　　　～","・エラー理由を参照しXMLファイルの指摘箇所を修正してください。"]
[null,10,"画面項目入力（入力規制）","入力エラー","対象年月日は『YYYYMMDD』形式の半角数字8桁で入力して下さい。","【ファイル情報】対象年月日\n・入力値を見直してください。"]
[null,11,null,"入力エラー","提出先事業者コードは半角英数字5桁で入力して下さい。","【基本情報】_提出先事業者（コード）\n・入力値を見直してください。"]
[null,12,null,"入力エラー","提出先事業者名称は50文字以内で入力して下さい。","【基本情報】_提出先事業者（名称▲）\n・入力値を見直してください。"]
[null,13,null,"入力エラー","送信事業者コードは半角英数字5桁で入力して下さい。","【基本情報】_送信事業者（コード）\n・入力値を見直してください。"]
[null,14,null,"入力エラー","送信事業者名称は50文字以内で入力して下さい。","【基本情報】_送信事業者（名称▲）\n・入力値を見直してください。"]
[null,15,null,"入力エラー","提出者コードは，系統コード（半角英数字5桁）を入力して下さい。","【基本情報】_提出者（系統コード）（コード）\n・入力値を見直してください。"]
[null,16,null,"入力エラー","発電機名称は50文字以内で入力して下さい。","【基本情報】_提出者（系統コード）（名称▲）\n・入力値を見直してください。"]
[null,17,null,"入力エラー","所属発電BGコードは半角英数字5桁で入力して下さい。","【発電計画内訳】所属発電BGコード\n・入力値を見直してください。"]
[null,18,null,"入力エラー","所属発電BG名称は50文字以内で入力して下さい。","【発電計画内訳】所属発電BG名称\n・入力値を見直してください。"]
[null,19,null,"入力エラー","発電計画(kWh)は半角9桁以内かつ正の整数で入力して下さい。","【発電計画内訳】発電計画(kWh)\n・入力値を見直してください。"]
[null,20,null,"入力エラー","1分発電計画電力(kW)は半角9桁以内かつ正の整数で入力して下さい。","【1分発電計画電力】1分発電計画電力(kW)\n・入力値を見直してください。"]
[null,21,"「発電計画XML出力」ボタン押下","入力エラー","対象年月日は『YYYYMMDD』形式の半角数字8桁で入力してください。","【ファイル情報】対象年月日\n・入力値を見直してください。"]
[null,22,null,"入力エラー","対象年月日は存在する日付で入力してください。","【ファイル情報】対象需要家リスト・パターン\n・存在する日付を入力してください。"]
[null,23,null,"入力エラー","提出先事業者コードは半角英数字5桁で入力してください。","【基本情報】_提出先事業者（コード）\n・入力値を見直してください。"]
[null,24,null,"入力エラー","提出先事業者名称は50文字以内で入力してください。","【基本情報】_提出先事業者（名称▲）\n・入力値を見直してください。"]
[null,25,null,"入力エラー","送信事業者コードは半角英数字5桁で入力してください。","【基本情報】_送信事業者（コード）\n・入力値を見直してください。"]
[null,26,null,"入力エラー","送信事業者名称は50文字以内で入力してください。","【基本情報】_送信事業者（名称▲）\n・入力値を見直してください。"]
[null,27,null,"入力エラー","提出者コード（系統コード）は半角英数字5桁で入力してください。","【基本情報】_提出者（系統コード）（コード）\n・入力値を見直してください。"]
[null,28,null,"入力エラー","発電機名称は50文字以内で入力してください。","【基本情報】_提出者（系統コード）（名称▲）\n・入力値を見直してください。"]
[null,29,null,"入力エラー","電源等コードは半角英数字10桁以内で入力してください。","【出力ファイル名情報】_電源等コード\n・入力値を見直してください。"]
[null,30,null,"入力エラー","発電事業者nに誤りがあります。\n所属発電BGコードは半角英数字5桁(1桁目『G』,2桁目『I,O以外の英字』,3～4桁目『I,O以外の英数字』,5桁目『数字』)で入力してください。","【発電計画内訳】所属発電BGコード\n・入力値を見直してください。"]
[null,31,null,"入力エラー","発電事業者nに誤りがあります。\n所属発電BG名称は50文字以内で入力してください。","【発電計画内訳】所属発電BG名称\n・入力値を見直してください。"]
[null,32,null,"入力エラー","発電事業者nにおけるxx～xxの発電計画に誤りがあります。\n発電計画(kWh)は半角数字9桁以内の正の整数で入力してください。","【発電計画内訳】発電計画(kWh)\n・入力値を見直してください。\n※xx～xxは対象ブロック内の時間帯"]
[null,33,null,"入力エラー","タイムスロット〇〇におけるxx～xxの発電計画に誤りがあります。\n1分発電計画電力(kW)は半角数字9桁以内の正の整数で入力してください。","【1分発電計画電力】1分発電計画電力(kW)\n・入力値を見直してください。\n※〇〇はタイムスロットのコード値\n※xx～xxは対象ブロック内の時間帯"]
[null,34,null,"入力エラー","xx～xxにおける合計発電計画との間に差異があります。","【1分発電計画電力】1分発電計画電力(kW)\n・30分平均発電計画と合計発電計画の値を同値にしてください。\n※xx～xxは対象ブロック内の時間帯"]

{"sheet":"Add_Plan_Style","index":3,"n_rows":69,"n_cols":37,"rows_kept":69,"cut":false,"hidden":true,"merged":[[18,7,18,36],[15,5,16,5],[15,7,16,36],[17,5,18,5],[17,7,17,36]]}
[]
[]
[]
[]
[]
[]
[]
[]
[]
[]
[]
[]
[]
[null,"発電計画内訳"]
[null,"発電事業者1"]
[null,"所属発電BGコード",null,null,null,"合計発電計画と\n発電計画電力の整合性",null,"発電計画電力"]
[]
[null,"所属発電BG名称▲",null,null,null,"30分平均発電計画\n－合計発電計画",null,"1分発電計画電力(kW)"]
[null,null,null,null,null,null,"30分平均発電計画(kWh)","タイムスロット"]
[null,"発電計画(kWh)",null,null,null,"不整合電力量(kWh)",null,"01","02","03","04","05","06","07","08","09","10","11","12","13","14","15","16","17","18","19","20","21","22","23","24","25","26","27","28","29","30"]
[null,null,null,null,null,0,0]
[null,null,null,null,null,0,0]
[null,null,null,null,null,0,0]
[null,null,null,null,null,0,0]
[null,null,null,null,null,0,0]
[null,null,null,null,null,0,0]
[]
[]
[]
[]
[]
[]
[]
[]
[]
[]
[]
[]
[]
[]
[]
[]
[]
[]
[]
[]
[]
[]
[]
[]
[]
[]
[]
[]
[]
[]
[]
[]
[]
[]
[]
[]
[]
[]
[]
[]
[]
[]
[null,{"$f":"SUM(B27:B32)","v":0}]

{"sheet":"OCTO-W9-0431-001.xsd","index":4,"n_rows":338,"n_cols":4,"rows_kept":338,"cut":false,"hidden":true,"merged":[]}
["<?xml version=\"1.0\" encoding=\"UTF-8\" ?>"]
["<xsd:schema xmlns:xsd=\"http://www.w3.org/2001/XMLSchema\" elementFormDefault=\"qualified\" attributeFormDefault=\"unqualified\">"]
[]
["<!-- 三次調整力①1分発電計画電力計画(0431) -->"]
["<!-- 三次①基準値 2021.04 rev 1.0 Release -->"]
[]
["<!-- メッセージグループヘッダ -->"]
[null,"<xsd:element name=\"MMS-MSG\" type=\"TypeMMS-MSG\" />"]
[null,"<xsd:complexType name=\"TypeMMS-MSG\">"]
[null,null,"<xsd:sequence>"]
[null,null,null,"<xsd:element name=\"JPMGRP\" type=\"TypeJPMGRP\" />"]
[null,null,"</xsd:sequence>"]
[null,null,"<!-- BPID機関コード -->"]
[null,null,"<xsd:attribute name=\"BPID\"    type=\"CdC10-OCTO\"   use=\"required\" />"]
[null,null,"<!-- BPID副機関コード -->"]
[null,null,"<xsd:attribute name=\"BPIDSUB\" type=\"CdC11-W9\"     use=\"required\" />"]
[null,null,"<!-- 各BP標準の版 -->"]
[null,null,"<xsd:attribute name=\"BPIDVER\" type=\"CdC12-3A\"     use=\"required\" />"]
[null,null,"<!-- 情報区分コード -->"]
[null,null,"<xsd:attribute name=\"MSGID\"   type=\"CdC14\"        use=\"required\" />"]
[null,null,"<!-- マッピング規則の版 -->"]
[null,null,"<xsd:attribute name=\"MAPVER\"  type=\"CdC21\"        use=\"required\" />"]
[null,"</xsd:complexType>"]
[]
[null,"<!-- メッセージ定義 -->"]
[null,"<xsd:complexType name=\"TypeJPMGRP\">"]
[null,null,"<xsd:sequence>"]
[null,null,null,"<!-- メッセージグループヘッダ -->"]
[null,null,null,"<xsd:element name=\"JPMGH\" type=\"TypeJPMGH\" />"]
[null,null,null,"<!-- 業務メッセージ -->"]
[null,null,null,"<xsd:element name=\"JPTRM\" type=\"TypeJPTRM\" />"]
[null,null,"</xsd:sequence>"]
[null,null,"<!-- メッセージグループの属性定義 -->"]
[null,null,"<!-- メッセージグループのシーケンス番号 -->"]
[null,null,"<xsd:attribute name=\"SEQ\" type=\"NI5\" use=\"required\" />"]
[null,"</xsd:complexType>"]
[]
["<!-- メッセージグループヘッダ -->"]
[null,"<xsd:complexType name=\"TypeJPMGH\">"]
[null,null,"<xsd:sequence>"]
[null,null,null,"<!-- 運用モード -->"]
[null,null,null,"<xsd:element name=\"JPC03\" type=\"CdC03\" />"]
[null,null,null,"<!-- 発信者コード -->"]
[null,null,null,"<xsd:element name=\"JPC06\" type=\"CdC06\" />"]
[null,null,null,"<!-- 受信者コード -->"]
[null,null,null,"<xsd:element name=\"JPC09\" type=\"CdC09\" />"]
[null,null,null,"<!-- BPID機関コード -->"]
[null,null,null,"<xsd:element name=\"JPC10\" type=\"CdC10-OCTO\" />"]
[null,null,null,"<!-- BPID副機関コード -->"]
[null,null,null,"<xsd:element name=\"JPC11\" type=\"CdC11-W9\" />"]
[null,null,null,"<!-- BPIDVER -->"]
[null,null,null,"<xsd:element name=\"JPC12\" type=\"CdC12-3A\" />"]
[null,null,null,"<!-- 情報区分コード -->"]
[null,null,null,"<xsd:element name=\"JPC14\" type=\"CdC14\" />"]
[null,null,null,"<!-- 作成日付時刻 -->"]
[null,null,null,"<xsd:element name=\"JPC19\" type=\"DT_YYMMDDHHMMSS\" />"]
[null,null,null,"<!-- 構文規則識別版数 -->"]
[null,null,null,"<xsd:element name=\"JPC21\" type=\"CdC21\" />"]
[null,null,"</xsd:sequence>"]
[null,"</xsd:complexType>"]
[]
["<!-- 業務メッセージ -->"]
[null,"<xsd:complexType name=\"TypeJPTRM\">"]
[null,null,"<xsd:sequence>"]
[null,null,null,"<!-- 情報区分コード -->"]
[null,null,null,"<xsd:element name=\"JP00002\" type=\"STR4S\" />"]
[null,null,null,"<!-- 情報区分名称 -->"]
[null,null,null,"<xsd:element name=\"JP06170\" type=\"STR50\" minOccurs=\"0\" maxOccurs=\"1\" />"]
[null,null,null,"<!-- 送信者コード -->"]
[null,null,null,"<xsd:element name=\"JP06110\" type=\"STR5S\" />"]
[null,null,null,"<!-- 送信者名称 -->"]
[null,null,null,"<xsd:element name=\"JP06111\" type=\"STR50\" minOccurs=\"0\" maxOccurs=\"1\" />"]
[null,null,null,"<!-- 提出先事業者コード -->"]
[null,null,null,"<xsd:element name=\"JP06358\" type=\"STR5S\" />"]
[null,null,null,"<!-- 提出先事業者 -->"]
[null,null,null,"<xsd:element name=\"JP06359\" type=\"STR50\" minOccurs=\"0\" maxOccurs=\"1\" />"]
[null,null,null,"<!-- 発電側系統コード -->"]
[null,null,null,"<xsd:element name=\"JP06186\" type=\"STR5S\" />"]
[null,null,null,"<!-- 発電機名称 -->"]
[null,null,null,"<xsd:element name=\"JP06310\" type=\"STR50\" minOccurs=\"0\" maxOccurs=\"1\" />"]
[null,null,null,"<!-- 対象期間開始年月日 -->"]
[null,null,null,"<xsd:element name=\"JP06171\" type=\"DT_YYYYMMDD\" />"]
[null,null,null,"<!-- 対象ブロック -->"]
[null,null,null,"<xsd:element name=\"JP06702\" type=\"CD06702\" />"]
[null,null,null,"<!-- 帳票作成支援ツール名 -->"]
[null,null,null,"<xsd:element name=\"JP06613\" type=\"STR50\" minOccurs=\"0\" maxOccurs=\"1\" />"]
[]
[null,null,null,"<!-- M10ループ -->"]
[null,null,null,"<xsd:element name=\"JPM00010\" type=\"TypeJPM00010\" minOccurs=\"0\" maxOccurs=\"1\" />"]
[null,null,null,"<!-- M11ループ -->"]
[null,null,null,"<xsd:element name=\"JPM00011\" type=\"TypeJPM00011\" />"]
[null,null,null,"<!-- M13ループ -->"]
[null,null,null,"<xsd:element name=\"JPM00013\" type=\"TypeJPM00013\" />"]
[null,null,"</xsd:sequence>"]
[null,"<!-- メッセージの属性（シーケンス番号） -->"]
[null,null,"<xsd:attribute name=\"SEQ\" type=\"NI5\" use=\"required\" />"]
[null,"</xsd:complexType>"]
[]
[null,"<!-- M10ループ -->"]
[null,"<xsd:complexType name=\"TypeJPM00010\">"]
[null,null,"<xsd:sequence>"]
[null,null,null,"<xsd:element name=\"JPMR00010\" type=\"TypeJPMR00010\" minOccurs=\"6\" maxOccurs=\"6\" />"]
[null,null,"</xsd:sequence>"]
[null,"</xsd:complexType>"]
[null,"<!-- M10ループ中身 -->"]
[null,"<xsd:complexType name=\"TypeJPMR00010\">"]
[null,null,"<xsd:sequence>"]
[null,null,null,"<!-- 時刻コード -->"]
[null,null,null,"<xsd:element name=\"JP06219\" type=\"CD06252\" minOccurs=\"0\" maxOccurs=\"1\" />"]
[null,null,null,"<!-- 発電計画値 -->"]
[null,null,null,"<xsd:element name=\"JP06717\" type=\"NI9\" minOccurs=\"0\" maxOccurs=\"1\" />"]
[null,null,"</xsd:sequence>"]
[null,"</xsd:complexType>"]
[]
[null,"<!-- M11ループ -->"]
[null,"<xsd:complexType name=\"TypeJPM00011\">"]
[null,null,"<xsd:sequence>"]
[null,null,null,"<xsd:element name=\"JPMR00011\" type=\"TypeJPMR00011\" minOccurs=\"1\" maxOccurs=\"999\" />"]
[null,null,"</xsd:sequence>"]
[null,"</xsd:complexType>"]
[]
[null,"<!-- M11ループ中身 -->"]
[null,"<xsd:complexType name=\"TypeJPMR00011\">"]
[null,null,"<xsd:sequence>"]
[null,null,null,"<!-- BGコード -->"]
[null,null,null,"<xsd:element name=\"JP06300\" type=\"STR5S\" />"]
[null,null,null,"<!-- 発電事業者名 -->"]
[null,null,null,"<xsd:element name=\"JP06301\" type=\"STR50\" minOccurs=\"0\" maxOccurs=\"1\" />"]
[null,null,null,"<!-- M12ループ -->"]
[null,null,null,"<xsd:element name=\"JPM00012\" type=\"TypeJPM00012\" />"]
[null,null,"</xsd:sequence>"]
[null,"</xsd:complexType>"]
[]
[null,"<!-- M12ループ -->"]
[null,"<xsd:complexType name=\"TypeJPM00012\">"]
[null,null,"<xsd:sequence>"]
[null,null,null,"<xsd:element name=\"JPMR00012\" type=\"TypeJPMR00012\" minOccurs=\"6\" maxOccurs=\"6\" />"]
[null,null,"</xsd:sequence>"]
[null,"</xsd:complexType>"]
[]
[null,"<!-- M12ループ中身 -->"]
[null,"<xsd:complexType name=\"TypeJPMR00012\">"]
[null,null,"<xsd:sequence>"]
[null,null,null,"<!-- 時刻コード -->"]
[null,null,null,"<xsd:element name=\"JP06219\" type=\"CD06252\" />"]
[null,null,null,"<!-- 発電計画 -->"]
[null,null,null,"<xsd:element name=\"JP06231\" type=\"NI9\" />"]
[null,null,"</xsd:sequence>"]
[null,"</xsd:complexType>"]
[]
[null,"<!-- M13ループ -->"]
[null,"<xsd:complexType name=\"TypeJPM00013\">"]
[null,null,"<xsd:sequence>"]
[null,null,null,"<xsd:element name=\"JPMR00013\" type=\"TypeJPMR00013\" minOccurs=\"6\" maxOccurs=\"6\" />"]
[null,null,"</xsd:sequence>"]
[null,"</xsd:complexType>"]
[]
[null,"<!-- M13ループ中身 -->"]
[null,"<xsd:complexType name=\"TypeJPMR00013\">"]
[null,null,"<xsd:sequence>"]
[null,null,null,"<!-- 時刻コード -->"]
[null,null,null,"<xsd:element name=\"JP06219\" type=\"CD06252\" />"]
[null,null,null,"<!-- 提出日時 -->"]
[null,null,null,"<xsd:element name=\"JP06716\" type=\"DT_YYYYMMDDHHMMSS\" minOccurs=\"0\" maxOccurs=\"1\" />"]
[null,null,null,"<!-- M14ループ -->"]
[null,null,null,"<xsd:element name=\"JPM00014\" type=\"TypeJPM00014\" />"]
[null,null,"</xsd:sequence>"]
[null,"</xsd:complexType>"]
[]
[null,"<!-- M14ループ -->"]
[null,"<xsd:complexType name=\"TypeJPM00014\">"]
[null,null,"<xsd:sequence>"]
[null,null,null,"<xsd:element name=\"JPMR00014\" type=\"TypeJPMR00014\" minOccurs=\"30\" maxOccurs=\"30\" />"]
[null,null,"</xsd:sequence>"]
[null,"</xsd:complexType>"]
[]
[null,"<!-- M14ループ中身 -->"]
[null,"<xsd:complexType name=\"TypeJPMR00014\">"]
[null,null,"<xsd:sequence>"]
[null,null,null,"<!-- タイムスロット -->"]
[null,null,null,"<xsd:element name=\"JP06713\" type=\"CD06713\" />"]
[null,null,null,"<!-- 1分発電計画電力 -->"]
[null,null,null,"<xsd:element name=\"JP06715\" type=\"NI9\" />"]
[null,null,"</xsd:sequence>"]
[null,"</xsd:complexType>"]
[]
["<!-- JPC10:BPID機関コード(OCTO) -->"]
["<xsd:simpleType name=\"CdC10-OCTO\">"]
[null,"<xsd:restriction base=\"xsd:string\">"]
[null,null,null,"<xsd:enumeration value=\"OCTO\" />"]
[null,"</xsd:restriction>"]
["</xsd:simpleType>"]
[]
["<!-- JPC11:BPID副機関コード(W9) -->"]
["<xsd:simpleType name=\"CdC11-W9\">"]
[null,"<xsd:restriction base=\"xsd:string\">"]
[null,null,"<xsd:enumeration value=\"W9\" />"]
[null,"</xsd:restriction>"]
["</xsd:simpleType>"]
[]
["<!-- JPC12:BPID版(3A) -->"]
["<xsd:simpleType name=\"CdC12-3A\">"]
[null,"<xsd:restriction base=\"xsd:string\">"]
[null,null,"<xsd:enumeration value=\"3A\" />"]
[null,"</xsd:restriction>"]
["</xsd:simpleType>"]
[]
["<!-- 情報区分コード -->"]
["<xsd:simpleType name=\"CdC14\">"]
[null,"<xsd:restriction base=\"xsd:string\">"]
[null,null,"<xsd:enumeration value=\"0431\" />"]
[null,"</xsd:restriction>"]
["</xsd:simpleType>"]
[]
["<!-- JPC21:構文規則識別版数 -->"]
["<xsd:simpleType name=\"CdC21\">"]
[null,"<xsd:restriction base=\"xsd:string\">"]
[null,null,"<xsd:enumeration value=\"1.0-1A\" />"]
[null,"</xsd:restriction>"]
["</xsd:simpleType>"]
[]
["<!-- JPC03:運用モード -->"]
["<xsd:simpleType name=\"CdC03\">"]
[null,"<xsd:restriction base=\"xsd:string\">"]
[null,null,"<xsd:enumeration value=\"\" />"]
[null,null,"<xsd:enumeration value=\"0\" />"]
[null,null,"<xsd:enumeration value=\"1\" />"]
[null,"</xsd:restriction>"]
["</xsd:simpleType>"]
[]
["<!-- JPC06:発信者コード -->"]
["<xsd:simpleType name=\"CdC06\">"]
[null,"<xsd:restriction base=\"xsd:string\">"]
[null,null,"<xsd:pattern value=\"\\w{5}[0]{7}\" />"]
[null,"</xsd:restriction>"]
["</xsd:simpleType>"]
[]
["<!-- JPC09:受信者コード -->"]
["<xsd:simpleType name=\"CdC09\">"]
[null,"<xsd:restriction base=\"xsd:string\">"]
[null,null,"<xsd:pattern value=\"\\w{5}[0]{7}\" />"]
[null,"</xsd:restriction>"]
["</xsd:simpleType>"]
[]
[]
[]
["<!-- 日付関連 -->"]
["<xsd:simpleType name=\"DT_YYMMDDHHMMSS\">"]
[null,"<xsd:restriction base=\"xsd:string\">"]
[null,null,"<xsd:pattern value=\"\\d{12}\" />"]
[null,"</xsd:restriction>"]
["</xsd:simpleType>"]
[]
["<!-- 日付関連 -->"]
["<xsd:simpleType name=\"DT_YYYYMMDDHHMMSS\">"]
[null,"<xsd:restriction base=\"xsd:string\">"]
[null,null,"<xsd:pattern value=\"\\d{14}\" />"]
[null,"</xsd:restriction>"]
["</xsd:simpleType>"]
[]
["<!-- 対象ブロック -->"]
["<xsd:simpleType name=\"CD06702\">"]
[null,"<xsd:restriction base=\"xsd:string\">"]
[null,null,"<xsd:enumeration value=\"1\" />   <!-- 対象ブロック1 -->"]
[null,null,"<xsd:enumeration value=\"2\" />   <!-- 対象ブロック2 -->"]
[null,null,"<xsd:enumeration value=\"3\" />   <!-- 対象ブロック3 -->"]
[null,null,"<xsd:enumeration value=\"4\" />   <!-- 対象ブロック4 -->"]
[null,null,"<xsd:enumeration value=\"5\" />   <!-- 対象ブロック5 -->"]
[null,null,"<xsd:enumeration value=\"6\" />   <!-- 対象ブロック6 -->"]
[null,null,"<xsd:enumeration value=\"7\" />   <!-- 対象ブロック7 -->"]
[null,null,"<xsd:enumeration value=\"8\" />   <!-- 対象ブロック8 -->"]
[null,"</xsd:restriction>"]
["</xsd:simpleType>"]
[]
["<!-- JP06252:時刻コード -->"]
["<xsd:simpleType name=\"CD06252\">"]
[null,"<xsd:restriction base=\"xsd:string\">"]
[null,null,"<xsd:pattern value=\"0[1-9]|[1-3][0-9]|4[0-8]\" />"]
[null,"</xsd:restriction>"]
["</xsd:simpleType>"]
[]
["<!-- JP06713:タイムスロット -->"]
["<xsd:simpleType name=\"CD06713\">"]
[null,"<xsd:restriction base=\"xsd:string\">"]
[null,null,"<xsd:pattern value=\"0[1-9]|[1-2][0-9]|30\" />"]
[null,"</xsd:restriction>"]
["</xsd:simpleType>"]
[]
["<!-- 日付関連 -->"]
["<xsd:simpleType name=\"DT_YYYYMMDD\">"]
[null,"<xsd:restriction base=\"xsd:string\">"]
[null,null,"<xsd:pattern value=\"\\d{8}\" />"]
[null,"</xsd:restriction>"]
["</xsd:simpleType>"]
[]
["<!-- 数値型 -->"]
["<!-- ５桁 -->"]
["<xsd:simpleType name=\"NI5\">"]
[null,"<xsd:restriction base=\"xsd:nonNegativeInteger\">"]
[null,null,"<xsd:totalDigits value=\"5\" />"]
[null,"</xsd:restriction>"]
["</xsd:simpleType>"]
[]
["<!-- ９桁 -->"]
["<xsd:simpleType name=\"NI9\">"]
[null,"<xsd:restriction base=\"xsd:nonNegativeInteger\">"]
[null,null,"<xsd:totalDigits value=\"9\" />"]
[null,"</xsd:restriction>"]
["</xsd:simpleType>"]
[]
["<!-- 文字型 -->"]
["<!-- 50文字 -->"]
["<xsd:simpleType name=\"STR50\">"]
[null,"<xsd:restriction base=\"xsd:string\">"]
[null,null,"<xsd:minLength value=\"1\" />"]
[null,null,"<xsd:maxLength value=\"50\" />"]
[null,"</xsd:restriction>"]
["</xsd:simpleType>"]
[]
["<!-- ４文字・半角 -->"]
["<xsd:simpleType name=\"STR4S\">"]
[null,"<xsd:restriction base=\"xsd:string\">"]
[null,null,"<xsd:pattern value=\"[&#x20;-&#x7e;]+\" />"]
[null,null,"<xsd:minLength value=\"4\" />"]
[null,null,"<xsd:maxLength value=\"4\" />"]
[null,"</xsd:restriction>"]
["</xsd:simpleType>"]
[]
["<!-- ５文字・半角 -->"]
["<xsd:simpleType name=\"STR5S\">"]
[null,"<xsd:restriction base=\"xsd:string\">"]
[null,null,"<xsd:pattern value=\"[&#x20;-&#x7e;]+\" />"]
[null,null,"<xsd:minLength value=\"5\" />"]
[null,null,"<xsd:maxLength value=\"5\" />"]
[null,"</xsd:restriction>"]
["</xsd:simpleType>"]
[]
["</xsd:schema>"]